[Event "Titled Tuesday Blitz April 26 Early 2022"]
[White "Hamley, Ryan"]
[Black "Rustemov, Alexander"]
[WhiteFideId "30959497"]
[BlackFideId "4119002"]
[WhiteElo "2444"]
[BlackElo "2850"]
[Result "0-1"]
[Round "01"]
[TimeControl "180+1"]
[Date "2022.04.26"]
[WhiteClock "0:00:01"]
[BlackClock "0:00:16"]

1. d4 {[%clk 0:02:56]}  d5 {[%clk 0:03:00]} 2. c4 {[%clk 0:02:56]}  dxc4 {[%clk 0:03:00]} 3. e3 {[%clk 0:02:55]}  Nf6 {[%clk 0:03:01]} 4. Bxc4 {[%clk 0:02:55]}  e6 {[%clk 0:03:01]} 5. Nf3 {[%clk 0:02:56]}  c5 {[%clk 0:03:01]} 6. O-O {[%clk 0:02:56]}  Nbd7 {[%clk 0:03:01]} 7. b3 {[%clk 0:02:55]}  b6 {[%clk 0:03:00]} 8. Bb2 {[%clk 0:02:54]}  Bb7 {[%clk 0:03:00]} 9. Nc3 {[%clk 0:02:51]}  Be7 {[%clk 0:02:50]} 10. d5 {[%clk 0:02:51]}  exd5 {[%clk 0:02:49]} 11. Nxd5 {[%clk 0:02:51]}  O-O {[%clk 0:02:42]} 12. Nxe7+ {[%clk 0:02:42]}  Qxe7 {[%clk 0:02:42]} 13. Qe2 {[%clk 0:02:40]}  Ne4 {[%clk 0:02:31]} 14. Rad1 {[%clk 0:02:35]}  Rad8 {[%clk 0:02:30]} 15. h3 {[%clk 0:02:26]}  h6 {[%clk 0:02:26]} 16. Nd2 {[%clk 0:02:05]}  Nd6 {[%clk 0:02:19]} 17. Bd3 {[%clk 0:02:04]}  Ne5 {[%clk 0:02:18]} 18. Bc2 {[%clk 0:02:03]}  f5 {[%clk 0:02:13]} 19. Rfe1 {[%clk 0:01:52]}  Rfe8 {[%clk 0:01:58]} 20. f4 {[%clk 0:01:37]}  Nc6 {[%clk 0:01:54]} 21. Nf3 {[%clk 0:01:37]}  Nb4 {[%clk 0:01:52]} 22. Bb1 {[%clk 0:01:34]}  Be4 {[%clk 0:01:49]} 23. Ne5 {[%clk 0:01:26]}  Bxb1 {[%clk 0:01:48]} 24. Rxb1 {[%clk 0:01:26]}  Qe6 {[%clk 0:01:45]} 25. a3 {[%clk 0:01:17]}  Nd5 {[%clk 0:01:45]} 26. Rbd1 {[%clk 0:01:17]}  Ne4 {[%clk 0:01:44]} 27. Qc4 {[%clk 0:01:09]}  Rd6 {[%clk 0:01:39]} 28. Rd3 {[%clk 0:01:07]}  Ndf6 {[%clk 0:01:28]} 29. Red1 {[%clk 0:00:55]}  Qxc4 {[%clk 0:01:27]} 30. Nxc4 {[%clk 0:00:55]}  Rxd3 {[%clk 0:01:26]} 31. Rxd3 {[%clk 0:00:55]}  b5 {[%clk 0:01:22]} 32. Ne5 {[%clk 0:00:54]}  Rc8 {[%clk 0:01:21]} 33. Rd1 {[%clk 0:00:44]}  c4 {[%clk 0:01:19]} 34. bxc4 {[%clk 0:00:44]}  bxc4 {[%clk 0:01:20]} 35. Rc1 {[%clk 0:00:44]}  c3 {[%clk 0:01:19]} 36. Rc2 {[%clk 0:00:28]}  Nd5 {[%clk 0:01:15]} 37. Bc1 {[%clk 0:00:28]}  Rb8 {[%clk 0:00:49]} 38. Kf1 {[%clk 0:00:28]}  Rb3 {[%clk 0:00:48]} 39. Ke2 {[%clk 0:00:28]}  Nc5 {[%clk 0:00:46]} 40. g4 {[%clk 0:00:24]}  Nf6 {[%clk 0:00:31]} 41. gxf5 {[%clk 0:00:19]}  Nfe4 {[%clk 0:00:31]} 42. Kf3 {[%clk 0:00:14]}  a5 {[%clk 0:00:30]} 43. h4 {[%clk 0:00:12]}  a4 {[%clk 0:00:30]} 44. Nc4 {[%clk 0:00:11]}  Kf7 {[%clk 0:00:27]} 45. Na5 {[%clk 0:00:09]}  Kf6 {[%clk 0:00:26]} 46. Nc6 {[%clk 0:00:04]}  Kxf5 {[%clk 0:00:25]} 47. Nd4+ {[%clk 0:00:04]}  Kf6 {[%clk 0:00:25]} 48. Ke2 {[%clk 0:00:05]}  Rb1 {[%clk 0:00:23]} 49. Kf3 {[%clk 0:00:03]}  g6 {[%clk 0:00:22]} 50. Ne2 {[%clk 0:00:04]}  Rb3 {[%clk 0:00:16]} 51. Ra2 {[%clk 0:00:03]}  Ke6 {[%clk 0:00:16]} 52. Nd4+ {[%clk 0:00:03]}  Kd5 {[%clk 0:00:17]} 53. Ne2 {[%clk 0:00:02]}  Kc4 {[%clk 0:00:17]} 54. Nd4 {[%clk 0:00:02]}  Kd3 {[%clk 0:00:16]} 55. Nxb3 {[%clk 0:00:01]}  axb3 {[%clk 0:00:16]} 56. Ra1 {[%clk 0:00:01]}  Kc2 {[%clk 0:00:16]} 0-1


[Site "https://www.chess.com"]

[Event "Titled Tuesday Blitz April 26 Early 2022"]
[White "Harshavardhan G B"]
[Black "Rodrigues, Bruno Morado"]
[WhiteFideId "25059009"]
[BlackFideId "2115654"]
[WhiteElo "1831"]
[BlackElo "2040"]
[Result "0-1"]
[Round "01"]
[TimeControl "180+1"]
[Date "2022.04.26"]
[WhiteClock "0:00:26"]
[BlackClock "0:00:30"]

1. e4 {[%clk 0:03:00]}  c5 {[%clk 0:03:00]} 2. Nf3 {[%clk 0:03:00]}  Nc6 {[%clk 0:03:00]} 3. Nc3 {[%clk 0:02:59]}  d6 {[%clk 0:03:00]} 4. d4 {[%clk 0:02:57]}  cxd4 {[%clk 0:03:01]} 5. Nxd4 {[%clk 0:02:57]}  e5 {[%clk 0:03:02]} 6. Ndb5 {[%clk 0:02:56]}  a6 {[%clk 0:03:02]} 7. Na3 {[%clk 0:02:57]}  b5 {[%clk 0:03:02]} 8. Nd5 {[%clk 0:02:55]}  Nce7 {[%clk 0:03:03]} 9. c4 {[%clk 0:02:55]}  Nxd5 {[%clk 0:03:03]} 10. exd5 {[%clk 0:02:52]}  bxc4 {[%clk 0:03:03]} 11. Nxc4 {[%clk 0:02:51]}  f5 {[%clk 0:03:04]} 12. Be3 {[%clk 0:02:48]}  Rb8 {[%clk 0:03:04]} 13. Be2 {[%clk 0:02:42]}  Nf6 {[%clk 0:03:04]} 14. O-O {[%clk 0:02:42]}  Be7 {[%clk 0:03:04]} 15. Qa4+ {[%clk 0:02:40]}  Kf7 {[%clk 0:03:04]} 16. f4 {[%clk 0:02:39]}  e4 {[%clk 0:03:03]} 17. Na5 {[%clk 0:02:37]}  Nxd5 {[%clk 0:02:34]} 18. Nc6 {[%clk 0:02:29]}  Qe8 {[%clk 0:02:29]} 19. Bc4 {[%clk 0:01:49]}  Be6 {[%clk 0:02:26]} 20. Qxa6 {[%clk 0:01:44]}  Nxe3 {[%clk 0:02:20]} 21. Bxe6+ {[%clk 0:01:38]}  Kxe6 {[%clk 0:02:21]} 22. Nxb8 {[%clk 0:01:37]}  Nxf1 {[%clk 0:02:00]} 23. Qc4+ {[%clk 0:01:37]}  d5 {[%clk 0:01:51]} 24. Qa6+ {[%clk 0:01:37]}  Kf7 {[%clk 0:01:51]} 25. Nc6 {[%clk 0:01:34]}  Ne3 {[%clk 0:01:39]} 26. Ne5+ {[%clk 0:01:34]}  Kf8 {[%clk 0:01:34]} 27. Qe6 {[%clk 0:01:31]}  g6 {[%clk 0:01:24]} 28. Rc1 {[%clk 0:01:21]}  Nc4 {[%clk 0:01:12]} 29. Nd7+ {[%clk 0:01:20]}  Kg7 {[%clk 0:01:12]} 30. Qxd5 {[%clk 0:01:20]}  Nd6 {[%clk 0:01:03]} 31. Ne5 {[%clk 0:01:14]}  Nf7 {[%clk 0:00:56]} 32. Rc7 {[%clk 0:00:57]}  Rf8 {[%clk 0:00:55]} 33. Nd7 {[%clk 0:00:47]}  Qd8 {[%clk 0:00:45]} 34. Qc6 {[%clk 0:00:39]}  Re8 {[%clk 0:00:42]} 35. h3 {[%clk 0:00:37]}  Kg8 {[%clk 0:00:40]} 36. a4 {[%clk 0:00:35]}  Bh4 {[%clk 0:00:38]} 37. Kh2 {[%clk 0:00:32]}  e3 {[%clk 0:00:39]} 38. Qc4 {[%clk 0:00:28]}  e2 {[%clk 0:00:36]} 39. Ne5 {[%clk 0:00:26]}  Bg3+ {[%clk 0:00:30]} 40. Kxg3 {[%clk 0:00:24]}  e1=Q+ {[%clk 0:00:30]} 41. Kh2 {[%clk 0:00:24]}  Qxc7 {[%clk 0:00:26]} 42. Qxc7 {[%clk 0:00:24]}  Nxe5 {[%clk 0:00:27]} 43. fxe5 {[%clk 0:00:24]}  Qxe5+ {[%clk 0:00:28]} 44. Qxe5 {[%clk 0:00:24]}  Rxe5 {[%clk 0:00:29]} 45. Kg1 {[%clk 0:00:23]}  Re2 {[%clk 0:00:27]} 46. b4 {[%clk 0:00:23]}  Re4 {[%clk 0:00:28]} 47. b5 {[%clk 0:00:24]}  Rxa4 {[%clk 0:00:28]} 48. b6 {[%clk 0:00:25]}  Rb4 {[%clk 0:00:29]} 49. b7 {[%clk 0:00:26]}  Rxb7 {[%clk 0:00:30]} 0-1


[Site "https://www.chess.com"]

[Event "Titled Tuesday Blitz April 26 Early 2022"]
[White "Haukenfrers, Dale"]
[Black "Olsen, Filip Boe"]
[WhiteFideId "2603780"]
[BlackFideId "1440640"]
[WhiteElo "2021"]
[BlackElo "2188"]
[Result "0-1"]
[Round "01"]
[TimeControl "180+1"]
[Date "2022.04.26"]
[WhiteClock "0:00:53"]
[BlackClock "0:00:15"]

1. c3 {[%clk 0:03:00]}  d5 {[%clk 0:02:57]} 2. f3 {[%clk 0:03:01]}  Nf6 {[%clk 0:02:56]} 3. e4 {[%clk 0:03:01]}  e5 {[%clk 0:02:38]} 4. Be2 {[%clk 0:02:59]}  Bc5 {[%clk 0:02:34]} 5. b4 {[%clk 0:02:56]}  Bb6 {[%clk 0:02:33]} 6. Qc2 {[%clk 0:02:52]}  O-O {[%clk 0:02:26]} 7. Bb2 {[%clk 0:02:47]}  Be6 {[%clk 0:02:23]} 8. Nh3 {[%clk 0:02:45]}  Nh5 {[%clk 0:02:09]} 9. Na3 {[%clk 0:02:30]}  Qh4+ {[%clk 0:01:58]} 10. Kd1 {[%clk 0:02:29]}  Bxh3 {[%clk 0:01:47]} 11. gxh3 {[%clk 0:02:30]}  Rd8 {[%clk 0:01:40]} 12. c4 {[%clk 0:02:22]}  dxc4 {[%clk 0:01:19]} 13. Nxc4 {[%clk 0:02:20]}  Nc6 {[%clk 0:01:09]} 14. Nxe5 {[%clk 0:02:09]}  Nd4 {[%clk 0:00:51]} 15. Qc4 {[%clk 0:02:00]}  Qf4 {[%clk 0:00:48]} 16. Nd3 {[%clk 0:01:53]}  Qd6 {[%clk 0:00:43]} 17. a4 {[%clk 0:01:40]}  Nxe2 {[%clk 0:00:40]} 18. a5 {[%clk 0:01:34]}  Qxd3 {[%clk 0:00:34]} 19. Qxd3 {[%clk 0:01:34]}  Rxd3 {[%clk 0:00:35]} 20. axb6 {[%clk 0:01:32]}  cxb6 {[%clk 0:00:24]} 21. Kxe2 {[%clk 0:01:26]}  Nf4+ {[%clk 0:00:24]} 22. Kf2 {[%clk 0:01:22]}  Rxd2+ {[%clk 0:00:23]} 23. Ke3 {[%clk 0:01:22]}  Rxb2 {[%clk 0:00:20]} 24. Kxf4 {[%clk 0:01:22]}  Rxb4 {[%clk 0:00:21]} 25. Rhd1 {[%clk 0:01:16]}  h6 {[%clk 0:00:19]} 26. Rd7 {[%clk 0:01:14]}  a5 {[%clk 0:00:19]} 27. Rc1 {[%clk 0:01:12]}  a4 {[%clk 0:00:20]} 28. Rcc7 {[%clk 0:01:12]}  Rf8 {[%clk 0:00:20]} 29. Rxb7 {[%clk 0:01:12]}  a3 {[%clk 0:00:20]} 30. Ra7 {[%clk 0:01:09]}  Rb3 {[%clk 0:00:20]} 31. Kg4 {[%clk 0:01:02]}  b5 {[%clk 0:00:19]} 32. h4 {[%clk 0:01:02]}  b4 {[%clk 0:00:19]} 33. h3 {[%clk 0:01:02]}  Rb2 {[%clk 0:00:19]} 34. Kh5 {[%clk 0:01:01]}  a2 {[%clk 0:00:19]} 35. f4 {[%clk 0:01:01]}  b3 {[%clk 0:00:19]} 36. e5 {[%clk 0:01:00]}  Rf2 {[%clk 0:00:19]} 37. e6 {[%clk 0:01:00]}  Rxf4 {[%clk 0:00:19]} 38. Rxf7 {[%clk 0:00:57]}  R4xf7 {[%clk 0:00:18]} 39. Kg6 {[%clk 0:00:57]}  Rxa7 {[%clk 0:00:18]} 40. Kh5 {[%clk 0:00:54]}  a1=Q {[%clk 0:00:17]} 41. e7 {[%clk 0:00:54]}  Qe5+ {[%clk 0:00:17]} 42. Kg4 {[%clk 0:00:53]}  Ra4# {[%clk 0:00:15]} 0-1


[Site "https://www.chess.com"]

[Event "Titled Tuesday Blitz April 26 Early 2022"]
[White "Hnydiuk, Aleksander"]
[Black "Srebrnic, Marko"]
[WhiteFideId "1109057"]
[BlackFideId "14603616"]
[WhiteElo "2374"]
[BlackElo "2340"]
[Result "0-1"]
[Round "01"]
[TimeControl "180+1"]
[Date "2022.04.26"]
[WhiteClock "0:00:09"]
[BlackClock "0:01:32"]

1. e4 {[%clk 0:02:57]}  c5 {[%clk 0:02:59]} 2. Nf3 {[%clk 0:02:56]}  Nc6 {[%clk 0:02:58]} 3. Bb5 {[%clk 0:02:55]}  g6 {[%clk 0:02:56]} 4. O-O {[%clk 0:02:51]}  Bg7 {[%clk 0:02:56]} 5. Nc3 {[%clk 0:02:51]}  Nf6 {[%clk 0:02:56]} 6. Re1 {[%clk 0:02:41]}  O-O {[%clk 0:02:55]} 7. e5 {[%clk 0:02:39]}  Ng4 {[%clk 0:02:52]} 8. Bxc6 {[%clk 0:02:37]}  dxc6 {[%clk 0:02:51]} 9. d3 {[%clk 0:02:31]}  h5 {[%clk 0:02:45]} 10. Bf4 {[%clk 0:02:29]}  Bh6 {[%clk 0:02:42]} 11. Qd2 {[%clk 0:02:26]}  Kg7 {[%clk 0:02:40]} 12. Ne4 {[%clk 0:02:17]}  b6 {[%clk 0:02:33]} 13. Neg5 {[%clk 0:02:00]}  f6 {[%clk 0:02:21]} 14. exf6+ {[%clk 0:02:00]}  exf6 {[%clk 0:02:22]} 15. Ne6+ {[%clk 0:01:58]}  Bxe6 {[%clk 0:02:22]} 16. Rxe6 {[%clk 0:01:58]}  Qd7 {[%clk 0:02:20]} 17. Rae1 {[%clk 0:01:56]}  Rae8 {[%clk 0:02:19]} 18. Rxe8 {[%clk 0:01:43]}  Rxe8 {[%clk 0:02:20]} 19. Rxe8 {[%clk 0:01:41]}  Qxe8 {[%clk 0:02:21]} 20. h3 {[%clk 0:01:37]}  Bxf4 {[%clk 0:02:13]} 21. Qxf4 {[%clk 0:01:38]}  Nh6 {[%clk 0:02:14]} 22. Qc7+ {[%clk 0:01:24]}  Qf7 {[%clk 0:02:14]} 23. Qxc6 {[%clk 0:01:22]}  Qxa2 {[%clk 0:02:15]} 24. Qd7+ {[%clk 0:01:05]}  Nf7 {[%clk 0:02:14]} 25. d4 {[%clk 0:00:40]}  Qxb2 {[%clk 0:02:07]} 26. d5 {[%clk 0:00:39]}  Qxc2 {[%clk 0:02:01]} 27. Qe6 {[%clk 0:00:30]}  Qd1+ {[%clk 0:01:51]} 28. Kh2 {[%clk 0:00:29]}  c4 {[%clk 0:01:50]} 29. Qe4 {[%clk 0:00:19]}  Qd3 {[%clk 0:01:45]} 30. Qe6 {[%clk 0:00:09]}  c3 {[%clk 0:01:43]} 31. Qc6 {[%clk 0:00:09]}  c2 {[%clk 0:01:38]} 32. Qc7 {[%clk 0:00:09]}  Qd1 {[%clk 0:01:32]} 0-1


[Site "https://www.chess.com"]

[Event "Titled Tuesday Blitz April 26 Early 2022"]
[White "Horobetz, Graham"]
[Black "Lauridsen, Jesper Morch"]
[WhiteFideId "2047322"]
[BlackFideId "1401890"]
[WhiteElo "2600"]
[BlackElo "2282"]
[Result "1/2-1/2"]
[Round "01"]
[TimeControl "180+1"]
[Date "2022.04.26"]
[WhiteClock "0:00:18"]
[BlackClock "0:00:06"]

1. e4 {[%clk 0:02:58]}  e6 {[%clk 0:02:59]} 2. d4 {[%clk 0:02:57]}  d5 {[%clk 0:02:59]} 3. Nd2 {[%clk 0:02:57]}  dxe4 {[%clk 0:02:58]} 4. Nxe4 {[%clk 0:02:57]}  Nd7 {[%clk 0:02:58]} 5. Nf3 {[%clk 0:02:52]}  Ngf6 {[%clk 0:02:58]} 6. Nxf6+ {[%clk 0:02:48]}  Nxf6 {[%clk 0:02:57]} 7. c3 {[%clk 0:02:42]}  c5 {[%clk 0:02:52]} 8. Ne5 {[%clk 0:02:32]}  a6 {[%clk 0:02:49]} 9. Qa4+ {[%clk 0:02:29]}  Bd7 {[%clk 0:02:44]} 10. Nxd7 {[%clk 0:02:28]}  Qxd7 {[%clk 0:02:39]} 11. Qxd7+ {[%clk 0:02:26]}  Kxd7 {[%clk 0:02:37]} 12. Be3 {[%clk 0:02:24]}  Nd5 {[%clk 0:02:30]} 13. Be2 {[%clk 0:02:02]}  Nxe3 {[%clk 0:02:26]} 14. fxe3 {[%clk 0:02:03]}  Rd8 {[%clk 0:02:01]} 15. Rf1 {[%clk 0:01:56]}  f6 {[%clk 0:01:59]} 16. O-O-O {[%clk 0:01:50]}  Kc7 {[%clk 0:01:59]} 17. Bg4 {[%clk 0:01:45]}  f5 {[%clk 0:01:50]} 18. Be2 {[%clk 0:01:42]}  g6 {[%clk 0:01:48]} 19. Kc2 {[%clk 0:01:33]}  Bh6 {[%clk 0:01:45]} 20. Rf3 {[%clk 0:01:33]}  Kc6 {[%clk 0:01:28]} 21. Bc4 {[%clk 0:01:32]}  Rhe8 {[%clk 0:01:20]} 22. Rh3 {[%clk 0:01:31]}  Bg5 {[%clk 0:01:15]} 23. Rxh7 {[%clk 0:01:06]}  b5 {[%clk 0:01:08]} 24. Be2 {[%clk 0:00:59]}  e5 {[%clk 0:00:49]} 25. Rg7 {[%clk 0:00:34]}  Re6 {[%clk 0:00:38]} 26. dxe5 {[%clk 0:00:33]}  Rxd1 {[%clk 0:00:35]} 27. Bxd1 {[%clk 0:00:34]}  Bxe3 {[%clk 0:00:33]} 28. Bf3+ {[%clk 0:00:33]}  Kb6 {[%clk 0:00:30]} 29. Rb7+ {[%clk 0:00:26]}  Ka5 {[%clk 0:00:30]} 30. a3 {[%clk 0:00:27]}  c4 {[%clk 0:00:26]} 31. b4+ {[%clk 0:00:15]}  cxb3+ {[%clk 0:00:25]} 32. Kxb3 {[%clk 0:00:16]}  Rxe5 {[%clk 0:00:20]} 33. Rg7 {[%clk 0:00:16]}  Re6 {[%clk 0:00:17]} 34. h3 {[%clk 0:00:17]}  Bd2 {[%clk 0:00:16]} 35. Kc2 {[%clk 0:00:15]}  Be1 {[%clk 0:00:15]} 36. Rd7 {[%clk 0:00:13]}  Bg3 {[%clk 0:00:13]} 37. Rd4 {[%clk 0:00:13]}  Rd6 {[%clk 0:00:12]} 38. Rxd6 {[%clk 0:00:05]}  Bxd6 {[%clk 0:00:11]} 39. Kb3 {[%clk 0:00:06]}  Kb6 {[%clk 0:00:11]} 40. Bd5 {[%clk 0:00:07]}  a5 {[%clk 0:00:10]} 41. a4 {[%clk 0:00:06]}  bxa4+ {[%clk 0:00:10]} 42. Kxa4 {[%clk 0:00:06]}  Kc5 {[%clk 0:00:10]} 43. Bf7 {[%clk 0:00:07]}  g5 {[%clk 0:00:08]} 44. Kxa5 {[%clk 0:00:07]}  Be5 {[%clk 0:00:06]} 45. c4 {[%clk 0:00:07]}  g4 {[%clk 0:00:06]} 46. h4 {[%clk 0:00:07]}  f4 {[%clk 0:00:04]} 47. Bd5 {[%clk 0:00:05]}  Kd6 {[%clk 0:00:02]} 48. h5 {[%clk 0:00:04]}  f3 {[%clk 0:00:02]} 49. gxf3 {[%clk 0:00:04]}  gxf3 {[%clk 0:00:02]} 50. Bxf3 {[%clk 0:00:05]}  Ke7 {[%clk 0:00:02]} 51. Kb6 {[%clk 0:00:04]}  Kf8 {[%clk 0:00:02]} 52. Kc6 {[%clk 0:00:04]}  Bd4 {[%clk 0:00:02]} 53. Kd5 {[%clk 0:00:04]}  Bg1 {[%clk 0:00:03]} 54. Ke6 {[%clk 0:00:05]}  Kg7 {[%clk 0:00:03]} 55. Kd6 {[%clk 0:00:05]}  Kh8 {[%clk 0:00:04]} 56. Kd7 {[%clk 0:00:05]}  Bf2 {[%clk 0:00:04]} 57. Ke6 {[%clk 0:00:06]}  Bg1 {[%clk 0:00:05]} 58. Kf5 {[%clk 0:00:07]}  Bf2 {[%clk 0:00:05]} 59. Bd5 {[%clk 0:00:08]}  Bg1 {[%clk 0:00:05]} 60. Kg6 {[%clk 0:00:08]}  Bf2 {[%clk 0:00:05]} 61. Kg5 {[%clk 0:00:09]}  Bg1 {[%clk 0:00:06]} 62. Kg4 {[%clk 0:00:10]}  Bf2 {[%clk 0:00:06]} 63. Kh3 {[%clk 0:00:11]}  Bc5 {[%clk 0:00:07]} 64. Kg2 {[%clk 0:00:12]}  Bd4 {[%clk 0:00:07]} 65. Kf3 {[%clk 0:00:12]}  Bc5 {[%clk 0:00:08]} 66. Ke4 {[%clk 0:00:13]}  Bg1 {[%clk 0:00:06]} 67. Be6 {[%clk 0:00:14]}  Bf2 {[%clk 0:00:06]} 68. Bf5 {[%clk 0:00:14]}  Bg1 {[%clk 0:00:06]} 69. Kf3 {[%clk 0:00:14]}  Bc5 {[%clk 0:00:06]} 70. Be6 {[%clk 0:00:15]}  Bd4 {[%clk 0:00:06]} 71. Ke4 {[%clk 0:00:15]}  Bc5 {[%clk 0:00:06]} 72. Kd5 {[%clk 0:00:16]}  Bg1 {[%clk 0:00:06]} 73. c5 {[%clk 0:00:17]}  Bxc5 {[%clk 0:00:06]} 74. Kxc5 {[%clk 0:00:17]}  Kg7 {[%clk 0:00:06]} 75. Kd5 {[%clk 0:00:18]}  Kh8 {[%clk 0:00:06]} 76. Ke5 {[%clk 0:00:18]}  Kg7 {[%clk 0:00:05]} 77. Kf5 {[%clk 0:00:18]}  Kh8 {[%clk 0:00:06]} 78. Kg6 {[%clk 0:00:18]} 1/2-1/2


[Site "https://www.chess.com"]

[Event "Titled Tuesday Blitz April 26 Early 2022"]
[White "Jakubowski, Krzysztof"]
[Black "Todorovic, Bojan"]
[WhiteFideId "1112848"]
[BlackFideId "917087"]
[WhiteElo "2365"]
[BlackElo "2266"]
[Result "0-1"]
[Round "01"]
[TimeControl "180+1"]
[Date "2022.04.26"]
[WhiteClock "0:00:01"]
[BlackClock "0:00:08"]

1. e4 {[%clk 0:02:59]}  e5 {[%clk 0:02:58]} 2. Nf3 {[%clk 0:02:58]}  Nc6 {[%clk 0:02:57]} 3. Bc4 {[%clk 0:02:57]}  Bc5 {[%clk 0:02:53]} 4. d3 {[%clk 0:02:53]}  Nf6 {[%clk 0:02:52]} 5. O-O {[%clk 0:02:52]}  d6 {[%clk 0:02:50]} 6. c3 {[%clk 0:02:46]}  O-O {[%clk 0:02:44]} 7. a4 {[%clk 0:02:42]}  a6 {[%clk 0:02:38]} 8. Re1 {[%clk 0:02:41]}  h6 {[%clk 0:02:23]} 9. h3 {[%clk 0:02:36]}  Qe7 {[%clk 0:02:17]} 10. Nbd2 {[%clk 0:02:29]}  Be6 {[%clk 0:02:12]} 11. b4 {[%clk 0:02:23]}  Bb6 {[%clk 0:02:07]} 12. Ba3 {[%clk 0:02:15]}  Rfe8 {[%clk 0:01:58]} 13. Bxe6 {[%clk 0:01:54]}  Qxe6 {[%clk 0:01:54]} 14. Nc4 {[%clk 0:01:53]}  Ba7 {[%clk 0:01:52]} 15. b5 {[%clk 0:01:44]}  Ne7 {[%clk 0:01:45]} 16. Qb1 {[%clk 0:01:33]}  Bb8 {[%clk 0:01:17]} 17. bxa6 {[%clk 0:01:24]}  bxa6 {[%clk 0:01:16]} 18. Nfd2 {[%clk 0:01:02]}  Ba7 {[%clk 0:01:05]} 19. Qc2 {[%clk 0:00:49]}  Nh5 {[%clk 0:01:02]} 20. Nf1 {[%clk 0:00:37]}  f5 {[%clk 0:00:56]} 21. exf5 {[%clk 0:00:33]}  Nxf5 {[%clk 0:00:54]} 22. Nce3 {[%clk 0:00:23]}  Nxe3 {[%clk 0:00:36]} 23. fxe3 {[%clk 0:00:20]}  Rf8 {[%clk 0:00:31]} 24. Kh2 {[%clk 0:00:16]}  Qg6 {[%clk 0:00:25]} 25. g4 {[%clk 0:00:11]}  Nf6 {[%clk 0:00:24]} 26. Qe2 {[%clk 0:00:11]}  Nd5 {[%clk 0:00:23]} 27. Rac1 {[%clk 0:00:08]}  Rab8 {[%clk 0:00:22]} 28. c4 {[%clk 0:00:08]}  Nf6 {[%clk 0:00:19]} 29. Rcd1 {[%clk 0:00:08]}  Rb3 {[%clk 0:00:18]} 30. Bc1 {[%clk 0:00:08]}  Nh7 {[%clk 0:00:17]} 31. Qg2 {[%clk 0:00:08]}  Ng5 {[%clk 0:00:16]} 32. Kh1 {[%clk 0:00:07]}  Rxd3 {[%clk 0:00:16]} 33. Rxd3 {[%clk 0:00:07]}  Qxd3 {[%clk 0:00:16]} 34. Qd5+ {[%clk 0:00:07]}  Qxd5+ {[%clk 0:00:15]} 35. cxd5 {[%clk 0:00:08]}  Ne4 {[%clk 0:00:13]} 36. Nd2 {[%clk 0:00:05]}  Nf2+ {[%clk 0:00:11]} 37. Kg2 {[%clk 0:00:05]}  Nd3 {[%clk 0:00:11]} 38. Rd1 {[%clk 0:00:05]}  Rf2+ {[%clk 0:00:09]} 39. Kg3 {[%clk 0:00:05]}  Re2 {[%clk 0:00:09]} 40. Ba3 {[%clk 0:00:05]}  Rxe3+ {[%clk 0:00:09]} 41. Kh4 {[%clk 0:00:02]}  Nf4 {[%clk 0:00:09]} 42. Nf1 {[%clk 0:00:01]}  Rxh3# {[%clk 0:00:08]} 0-1


[Site "https://www.chess.com"]

[Event "Titled Tuesday Blitz April 26 Early 2022"]
[White "Janaszak, Dawid"]
[Black "Gu, Xiaobing"]
[WhiteFideId "1119206"]
[BlackFideId "8602611"]
[WhiteElo "2199"]
[BlackElo "2174"]
[Result "1-0"]
[Round "01"]
[TimeControl "180+1"]
[Date "2022.04.26"]
[WhiteClock "0:01:13"]
[BlackClock "0:00:07"]

1. e4 {[%clk 0:03:00]}  c5 {[%clk 0:02:57]} 2. Nc3 {[%clk 0:02:59]}  d6 {[%clk 0:02:49]} 3. f4 {[%clk 0:02:58]}  a6 {[%clk 0:02:43]} 4. Nf3 {[%clk 0:02:52]}  b5 {[%clk 0:02:35]} 5. g3 {[%clk 0:02:48]}  Bb7 {[%clk 0:02:35]} 6. d3 {[%clk 0:02:44]}  Nf6 {[%clk 0:02:34]} 7. Bg2 {[%clk 0:02:45]}  e6 {[%clk 0:02:26]} 8. O-O {[%clk 0:02:44]}  Be7 {[%clk 0:02:26]} 9. h3 {[%clk 0:02:39]}  Nc6 {[%clk 0:02:20]} 10. a4 {[%clk 0:02:33]}  b4 {[%clk 0:02:05]} 11. Ne2 {[%clk 0:02:34]}  d5 {[%clk 0:02:01]} 12. e5 {[%clk 0:02:31]}  Nd7 {[%clk 0:02:00]} 13. c3 {[%clk 0:02:30]}  a5 {[%clk 0:01:58]} 14. Be3 {[%clk 0:02:18]}  Rc8 {[%clk 0:01:39]} 15. Qd2 {[%clk 0:02:13]}  Nb6 {[%clk 0:01:35]} 16. Bf2 {[%clk 0:02:05]}  O-O {[%clk 0:01:23]} 17. g4 {[%clk 0:02:06]}  f6 {[%clk 0:01:23]} 18. exf6 {[%clk 0:02:05]}  Rxf6 {[%clk 0:01:08]} 19. Ng3 {[%clk 0:01:57]}  Rf8 {[%clk 0:00:53]} 20. Rfe1 {[%clk 0:01:47]}  Qd6 {[%clk 0:00:43]} 21. f5 {[%clk 0:01:47]}  e5 {[%clk 0:00:36]} 22. Ng5 {[%clk 0:01:27]}  c4 {[%clk 0:00:11]} 23. Ne6 {[%clk 0:01:24]}  cxd3 {[%clk 0:00:09]} 24. Qxd3 {[%clk 0:01:18]}  e4 {[%clk 0:00:07]} 25. Qb5 {[%clk 0:01:13]} 1-0


[Site "https://www.chess.com"]

[Event "Titled Tuesday Blitz April 26 Early 2022"]
[White "Jobava, Baadur"]
[Black "Manukyan, Sargis A."]
[WhiteFideId "13601520"]
[BlackFideId "13303970"]
[WhiteElo "2617"]
[BlackElo "2187"]
[Result "1-0"]
[Round "01"]
[TimeControl "180+1"]
[Date "2022.04.26"]
[WhiteClock "0:02:42"]
[BlackClock "0:01:06"]

1. d4 {[%clk 0:03:00]}  d5 {[%clk 0:02:52]} 2. Nc3 {[%clk 0:03:01]}  Bf5 {[%clk 0:02:50]} 3. Bf4 {[%clk 0:03:01]}  c6 {[%clk 0:02:47]} 4. e3 {[%clk 0:03:01]}  Nd7 {[%clk 0:02:46]} 5. f3 {[%clk 0:03:01]}  Ngf6 {[%clk 0:02:43]} 6. g4 {[%clk 0:03:01]}  Bg6 {[%clk 0:02:43]} 7. h4 {[%clk 0:03:02]}  h5 {[%clk 0:02:31]} 8. g5 {[%clk 0:03:02]}  Ng8 {[%clk 0:02:29]} 9. Bd3 {[%clk 0:03:02]}  Bxd3 {[%clk 0:02:26]} 10. cxd3 {[%clk 0:03:03]}  g6 {[%clk 0:02:27]} 11. Nge2 {[%clk 0:03:03]}  Bg7 {[%clk 0:02:26]} 12. Qb3 {[%clk 0:03:00]}  Qb6 {[%clk 0:02:25]} 13. Qc2 {[%clk 0:03:00]}  e5 {[%clk 0:02:17]} 14. dxe5 {[%clk 0:02:57]}  Nxe5 {[%clk 0:02:17]} 15. Bxe5 {[%clk 0:02:55]}  Bxe5 {[%clk 0:02:17]} 16. d4 {[%clk 0:02:56]}  Bg7 {[%clk 0:02:17]} 17. O-O-O {[%clk 0:02:56]}  Ne7 {[%clk 0:02:17]} 18. Kb1 {[%clk 0:02:56]}  O-O {[%clk 0:02:10]} 19. Ng3 {[%clk 0:02:56]}  a5 {[%clk 0:02:06]} 20. f4 {[%clk 0:02:56]}  a4 {[%clk 0:02:04]} 21. f5 {[%clk 0:02:56]}  Qc7 {[%clk 0:01:40]} 22. Rhg1 {[%clk 0:02:51]}  Bh8 {[%clk 0:01:34]} 23. f6 {[%clk 0:02:47]}  Nc8 {[%clk 0:01:29]} 24. Nxd5 {[%clk 0:02:47]}  Qd6 {[%clk 0:01:29]} 25. Nf4 {[%clk 0:02:47]}  Re8 {[%clk 0:01:20]} 26. Nxg6 {[%clk 0:02:45]}  fxg6 {[%clk 0:01:20]} 27. Qxg6+ {[%clk 0:02:45]}  Kf8 {[%clk 0:01:20]} 28. Qh6+ {[%clk 0:02:42]}  Kf7 {[%clk 0:01:15]} 29. g6+ {[%clk 0:02:42]}  Ke6 {[%clk 0:01:06]} 30. f7 {[%clk 0:02:42]} 1-0


[Site "https://www.chess.com"]